bitfinex-derivatives/quotes_SOLF0:USTF0_20250528
["timestamp","ask_amount","ask_price","bid_price","bid_amount"]
[1748445857602,32.52,170.09,170.05,0.04357855]
[1748445858811,5.8773,170.08,170.05,0.04357855]
[1748445859313,32.52,170.09,170.05,0.04357855]
[1748445860410,38.3971,170.09,170.05,0.04357855]
[1748445860714,32.52,170.09,170.05,0.04357855]
[1748445862212,5.8774,170.08,170.05,0.04357855]
[1748445863512,32.52,170.09,170.05,5.92177855]
[1748445863811,32.52,170.09,170.05,0.04357855]
[1748445864515,6.0569,170.14,170.06,5.8779]
[1748445864710,32.44,170.11,170.05,0.04357855]
[1748445865214,5.8772,170.09,170.05,5.92187855]
[1748445865515,32.44,170.11,170.05,0.04357855]
[1748445866317,5.878,170.06,170.05,0.04357855]
[1748445868614,32.44,170.07,170.05,0.04357855]
[1748445869815,5.8775,170.08,170.05,0.04357855]
[1748445870615,5.8776,170.07,170.05,0.04357855]
[1748445870917,3.8776,170.07,170.05,0.04357855]
[1748445871716,5.8777,170.07,170.05,0.04357855]
[1748445872818,32.44,170.09,170.05,0.04357855]
[1748445873714,5.8776,170.08,170.05,0.04357855]
[1748445874019,32.44,170.09,170.05,0.04357855]
[1748445874419,5.8777,170.07,170.05,0.04357855]
[1748445875623,5.878,170.06,170.05,0.04357855]
[1748445876523,5.8778,170.07,170.05,0.04357855]
[1748445876825,32.44,170.09,170.05,0.04357855]
[1748445877122,5.8774,170.08,170.05,0.04357855]
[1748445878625,5.8777,170.07,170.05,0.04357855]
[1748445880530,5.878,170.06,170.05,0.04357855]
[1748445881829,5.8777,170.07,170.05,0.04357855]
[1748445885424,5.878,170.06,170.05,0.04357855]
[1748445887035,5.8778,170.07,170.05,0.04357855]
[1748445887434,32.44,170.09,170.05,0.04357855]
[1748445888336,5.878,170.06,170.05,0.04357855]
[1748445901742,32.44,170.09,169.97,1.9033]
[1748445901942,38.3346,170.08,169.94,32.38]
[1748445902134,5.8807,169.99,169.94,32.38]
[1748445902638,5.8807,169.99,169.95,0.0404554]
[1748445902842,0.04095304,169.98,169.95,0.0404554]
[1748445904836,5.92185304,169.98,169.95,0.0404554]
[1748445905143,0.04095304,169.98,169.95,0.0404554]
[1748445905439,5.92185304,169.98,169.95,0.0404554]
[1748445905639,0.04095304,169.98,169.95,0.0404554]
[1748445905943,5.8814,169.97,169.95,0.0404554]
[1748445907442,5.8815,169.96,169.95,0.0404554]
[1748445907744,0.04095304,169.98,169.95,0.0404554]
[1748445907947,5.8814,169.97,169.95,0.0404554]
[1748445908442,32.38,169.97,169.95,0.0404554]
[1748445908748,5.8815,169.96,169.95,0.0404554]
[1748445912448,5.8825,169.93,169.92,3.47869944]
[1748445912946,38.2625,169.93,169.92,3.47869944]
[1748445913350,32.38,169.93,169.91,0.03897855]
[1748445913547,32.38,169.93,169.82,34.3631]
[1748445913741,32.38,169.93,169.84,5.8854]
[1748445913942,5.8839,169.89,169.84,5.8854]
[1748445914144,5.8839,169.89,169.82,34.3631]
[1748445914451,38.2639,169.89,169.87,0.04400119]
[1748445915148,32.38,169.89,169.87,0.04400119]
[1748445915340,118.72,170.01,169.87,0.04400119]
[1748445915547,5.8813,169.97,169.88,16.32322752]
[1748445915746,32.32,169.96,169.88,16.32322752]
[1748445916247,6.0039,170.04,169.88,16.32322752]
[1748445916445,0.04357668,169.98,169.94,0.04246296]
[1748445918739,5.8814,169.97,169.94,0.04246296]
[1748445918946,0.04357668,169.98,169.94,0.04246296]
[1748445919347,5.92457668,169.98,169.94,0.04246296]
[1748445919654,0.04357668,169.98,169.94,0.04246296]
[1748445919844,0.04357668,169.98,169.94,5.92456296]
[1748445920346,0.04357668,169.98,169.94,0.04246296]
[1748445920551,0.04357668,169.98,169.95,5.8817]
[1748445922154,0.04357668,169.98,169.96,5.8814]
[1748445922947,0.04357668,169.98,169.97,5.8811]
[1748445925552,0.04357668,169.98,169.95,3.9519]
[1748445925553,0.04357668,169.98,169.96,5.8814]
[1748445925756,0.04357668,169.98,169.95,3.9519]
[1748445926655,0.04357668,169.98,169.97,5.8811]
[1748445926850,32.32,170.02,169.95,3.9519]
[1748445927059,32.32,170.02,169.99,5.8801]
[1748445927546,32.32,170.02,169.95,3.9519]
[1748445927850,32.32,170.02,169.97,0.04474069]
[1748445927851,5.881,169.98,169.97,0.04474069]
[1748445929457,32.32,169.98,169.9,32.32]
[1748445929645,32.32,169.98,169.9,38.2034]
[1748445929852,5.8817,169.96,169.9,38.2034]
[1748445930051,5.8817,169.96,169.91,5.8831]
[1748445930256,0.04102935,169.95,169.92,0.04503386]
[1748445931960,5.92292935,169.95,169.92,0.04503386]
[1748445932151,0.04102935,169.95,169.92,0.04503386]
[1748445932353,0.04102935,169.95,169.88,10.40602752]
[1748445932354,32.32,169.94,169.88,10.40602752]
[1748445933357,32.32,169.94,169.89,0.04101624]
[1748445934459,5.8831,169.92,169.89,0.04101624]
[1748445935858,5.8832,169.91,169.89,0.04101624]
[1748445936062,32.32,169.94,169.89,0.04101624]
[1748445937255,5.8831,169.92,169.89,0.04101624]
[1748445938458,0.04102935,169.95,169.89,0.04101624]
[1748445938762,0.04102935,169.95,169.92,5.8826]
[1748445939561,0.04102935,169.95,169.9,5.9826]
[1748445939756,0.04102935,169.95,169.9,3.9836]
[1748445940163,5.8824,169.94,169.9,3.9836]
[1748445940863,5.8827,169.93,169.9,3.9836]
[1748445941162,5.8827,169.93,169.89,0.04101624]
[1748445941569,0.04102935,169.95,169.89,0.04101624]
[1748445942665,5.8823,169.94,169.89,5.92491624]
[1748445942958,0.04102935,169.95,169.89,0.04101624]
[1748445943963,5.8823,169.94,169.89,5.92461624]
[1748445944153,0.04102935,169.95,169.89,0.04101624]
[1748445944564,5.92312935,169.95,169.9,5.8835]
[1748445944864,0.04102935,169.95,169.9,5.8835]
[1748445945567,5.8822,169.94,169.89,5.92481624]
[1748445946171,5.8822,169.94,169.9,5.8835]
[1748445946469,5.8825,169.93,169.89,0.04101624]
[1748445946767,0.04102935,169.95,169.89,5.92481624]
[1748445947168,5.8825,169.94,169.89,5.92481624]
[1748445947369,5.8825,169.94,169.89,0.04101624]
[1748445947572,0.04102935,169.95,169.89,0.04101624]
[1748445947767,5.8827,169.93,169.89,0.04101624]
[1748445948272,5.8828,169.93,169.89,0.04101624]
[1748445948566,0.04102935,169.95,169.89,0.04101624]
[1748445948771,5.883,169.92,169.89,0.04101624]
[1748445949973,0.04102935,169.95,169.89,0.04101624]
[1748445951374,5.8833,169.91,169.89,0.04101624]
[1748445951575,32.26,169.93,169.89,0.04101624]
[1748445952277,5.8835,169.9,169.89,0.04101624]
[1748445956080,0.04067958,169.91,169.89,0.04101624]
[1748445956678,0.04067958,169.91,169.89,5.92491624]
[1748445957280,0.04067958,169.91,169.89,0.04101624]
[1748445958181,0.04067958,169.91,169.89,5.92481624]
[1748445958576,0.04067958,169.91,169.89,0.04101624]
[1748445959881,5.8835,169.9,169.89,0.04101624]
[1748445960787,0.04067958,169.91,169.78,32.26]
[1748445960982,32.26,169.9,169.79,4.1112]
[1748445961281,3.9253,169.92,169.79,4.1112]
[1748445961282,32.26,169.89,169.79,4.1112]
[1748445961673,0.04065541,169.86,169.82,0.03765561]
[1748445961880,5.8862,169.83,169.82,0.03765561]
[1748445962279,0.04065541,169.86,169.82,0.03765561]
[1748445962672,0.04065541,169.86,169.83,5.886]
[1748445962983,0.04065541,169.86,169.82,0.03765561]
[1748445963481,5.8839,169.9,169.82,32.29765561]
[1748445963676,540.64,169.94,169.82,32.26]
[1748445964283,0.04285151,169.9,169.86,0.03924446]
[1748445964484,32.30285151,169.9,169.86,0.03924446]
[1748445964984,5.8844,169.88,169.86,0.03924446]
[1748445965580,5.8846,169.87,169.86,0.03924446]
[1748445965984,32.30285151,169.9,169.86,0.03924446]
[1748445966284,5.8845,169.88,169.86,0.03924446]
[1748445967286,0.04285151,169.9,169.86,5.92384446]
[1748445968576,0.04285151,169.9,169.86,0.03924446]
[1748445969189,5.8846,169.87,169.86,0.03924446]
[1748445971498,0.04285151,169.9,169.86,0.03924446]
[1748445972796,5.92655151,169.9,169.86,0.03924446]
[1748445972998,0.04285151,169.9,169.86,0.03924446]
[1748445974595,0.04285151,169.9,169.72,508.38]
[1748445974792,15.9596,169.91,169.73,38.0477]
[1748445974992,1.9434,169.9,169.73,38.0477]
[1748445975193,5.8861,169.83,169.73,38.0477]
[1748445975395,32.18,169.86,169.73,38.0477]
[1748445975598,0.04223116,169.81,169.78,0.04190292]
[1748445977002,5.92913116,169.81,169.78,0.04190292]
[1748445977196,0.04223116,169.81,169.78,0.04190292]
[1748445978201,5.8873,169.79,169.78,0.04190292]
[1748445979393,0.04223116,169.81,169.78,0.04190292]
[1748445980005,0.04223116,169.81,169.78,5.92960292]
[1748445980298,0.04223116,169.81,169.78,0.04190292]
[1748445980492,0.04223116,169.81,169.8,5.887]
[1748445980692,32.2,169.86,169.78,0.04190292]
[1748445981097,5.8844,169.88,169.85,5.8852]
[1748445981299,32.2,169.9,169.82,32.2]
[1748445981502,32.2,169.9,169.83,2.071]
[1748445981702,0.03815592,169.88,169.86,5.8847]
[1748445982105,0.03815592,169.88,169.87,5.8846]
[1748445982303,5.8834,169.91,169.85,0.03823803]
[1748445982502,32.2,169.94,169.85,0.03823803]
[1748445983200,5.8834,169.91,169.87,5.8843]
[1748445983400,5.92120598,169.91,169.87,5.92266986]
[1748445983904,5.8836,169.9,169.87,5.92266986]
[1748445984298,0.03780598,169.91,169.87,0.03836986]
[1748445984903,5.8836,169.9,169.87,0.03836986]
[1748445986004,5.8836,169.9,169.87,5.92286986]
[1748445986401,5.92100598,169.91,169.87,5.92286986]
[1748445986705,0.03780598,169.91,169.87,5.92286986]
[1748445987004,5.8836,169.9,169.87,0.03836986]
[1748445987204,0.03780598,169.91,169.87,0.03836986]
[1748445987503,5.92120598,169.91,169.87,5.92266986]
[1748445987899,0.03780598,169.91,169.87,5.92266986]
[1748445989405,0.03780598,169.91,169.88,5.8842]
[1748445990107,0.03780598,169.91,169.87,0.03836986]
[1748445990695,0.03780598,169.91,169.89,5.8836]
[1748445990904,0.03780598,169.91,169.87,0.03836986]
[1748445991407,0.03780598,169.91,169.9,5.8835]
[1748445991709,0.03780598,169.91,169.87,0.03836986]
[1748445992200,0.03780598,169.91,169.89,5.8838]
[1748445992396,0.03780598,169.91,169.87,0.03836986]
[1748445992605,0.03780598,169.91,169.87,5.92286986]
[1748445992802,5.92120598,169.91,169.87,5.92286986]
[1748445993404,5.92120598,169.91,169.87,0.03836986]
[1748445994710,5.92120598,169.91,169.87,5.92286986]
[1748445994910,5.8836,169.9,169.87,0.03836986]
[1748445995105,0.03780598,169.91,169.87,0.03836986]
[1748445995305,0.03780598,169.91,169.87,5.92266986]
[1748445997210,0.03780598,169.91,169.87,0.03836986]
[1748445997413,5.92100598,169.91,169.87,0.03836986]
[1748445998512,0.03780598,169.91,169.87,0.03836986]
[1748445999213,0.03780598,169.91,169.9,5.8835]
[1748445999411,0.03780598,169.91,169.87,0.03836986]
[1748445999805,0.03780598,169.91,169.9,5.8835]
[1748446000207,32.18,169.98,169.9,5.8835]
[1748446000405,5.8823,169.94,169.9,5.8835]
[1748446000806,32.18,169.98,169.9,5.8835]
[1748446001019,5.8824,169.94,169.9,5.8835]
[1748446001206,5.92763091,169.94,169.9,5.92367516]
[1748446001619,5.8825,169.93,169.9,5.92367516]
[1748446002020,0.04523091,169.94,169.9,0.04017516]
[1748446002914,5.8832,169.91,169.9,0.04017516]
[1748446009223,5.883,169.92,169.9,0.04017516]
[1748446010129,5.8832,169.91,169.9,0.04017516]
[1748446011130,5.883,169.92,169.9,0.04017516]
[1748446011431,32.22523091,169.94,169.9,0.04017516]
[1748446012224,5.8832,169.91,169.9,0.04017516]
[1748446012627,32.22523091,169.94,169.84,1.9106]
[1748446012830,32.18,169.94,169.84,1.9106]
[1748446013229,5.8837,169.9,169.86,5.8848]
[1748446013531,5.92826307,169.9,169.86,5.93013014]
[1748446013928,0.04456307,169.9,169.86,0.04533014]
[1748446014426,0.04456307,169.9,169.89,5.8839]
[1748446015131,0.04456307,169.9,169.86,0.04533014]
[1748446015632,5.92826307,169.9,169.87,5.8844]
[1748446015934,0.04456307,169.9,169.86,0.04533014]
[1748446016834,0.04456307,169.9,169.87,5.8843]
[1748446017035,0.04456307,169.9,169.86,0.04533014]
[1748446018130,0.04456307,169.9,169.87,5.8845]
[1748446018535,5.8839,169.89,169.86,5.93003014]
[1748446018743,0.04456307,169.9,169.86,0.04533014]
[1748446019234,0.04456307,169.9,169.86,5.93013014]
[1748446019740,5.92836307,169.9,169.86,0.04533014]
[1748446020334,0.04456307,169.9,169.86,0.04533014]
[1748446020637,32.14456307,169.9,169.86,0.04533014]
[1748446021029,5.8846,169.87,169.86,0.04533014]
[1748446022233,5.886,169.83,169.8,32.1]
[1748446022939,5.8863,169.82,169.8,32.1]
[1748446023133,5.8863,169.82,169.78,11.8605]
[1748446023434,0.03800535,169.82,169.78,0.0386454]
[1748446024038,5.8872,169.8,169.78,0.0386454]
[1748446025038,5.8867,169.81,169.78,0.0386454]
[1748446025337,0.03800535,169.82,169.78,0.0386454]
[1748446025836,5.92450535,169.82,169.78,0.0386454]
[1748446027832,5.8867,169.81,169.78,0.0386454]
[1748446028033,0.03800535,169.82,169.78,5.9261454]
[1748446028340,0.03800535,169.82,169.78,0.0386454]
[1748446028639,0.03800535,169.82,169.8,5.887]
[1748446028838,0.03800535,169.82,169.78,0.0386454]
[1748446029242,0.03800535,169.82,169.8,5.8868]
[1748446029641,0.03800535,169.82,169.78,0.0386454]
[1748446029842,0.03800535,169.82,169.79,5.8872]
[1748446030643,0.03800535,169.82,169.78,0.0386454]
[1748446031243,0.03800535,169.82,169.81,5.8866]
[1748446031444,508.4,169.92,169.81,32.12]
[1748446031643,32.12,169.94,169.82,2.0801]
[1748446032142,5.8835,169.91,169.82,2.0801]
[1748446032644,0.04486643,169.88,169.85,0.04350297]
[1748446032839,0.04486643,169.88,169.85,32.16350297]
[1748446033241,32.12,169.94,169.86,1.9473]
[1748446033640,32.12,169.94,169.91,5.8831]
[1748446034343,32.16489399,169.94,169.91,5.92791487]
[1748446034539,38.04729399,169.94,169.91,5.92791487]
[1748446034845,32.16489399,169.94,169.91,0.04481487]
[1748446035239,5.8827,169.93,169.91,0.04481487]
[1748446035546,32.16489399,169.94,169.91,0.04481487]
[1748446035743,0.04489399,169.94,169.92,5.8826]
[1748446035941,0.04489399,169.94,169.91,0.04481487]
[1748446036542,0.04489399,169.94,169.93,5.8825]
[1748446036749,32.02,170.02,169.91,0.04481487]
[1748446037040,5.8804,170.0,169.96,5.8812]
[1748446037340,32.02,170.02,169.96,5.8812]
[1748446037642,5.8807,169.99,169.95,5.8816]
[1748446038347,5.8809,169.98,169.94,0.04250219]
[1748446038847,32.02,169.98,169.94,0.04250219]
[1748446039947,5.8818,169.95,169.94,0.04250219]
[1748446040150,32.02,169.98,169.89,32.1]
[1748446040343,3.9995,169.97,169.86,1.9473]
[1748446040642,5.8824,169.94,169.89,5.8839]
[1748446041147,0.04095162,169.93,169.9,0.03994443]
[1748446041841,0.04095162,169.93,169.92,5.8828]
[1748446043346,0.04095162,169.93,169.9,0.03994443]
[1748446045746,5.8831,169.92,169.9,0.03994443]
[1748446046051,0.04095162,169.93,169.9,0.03994443]
[1748446047349,5.92355162,169.93,169.9,0.03994443]
[1748446047554,0.04095162,169.93,169.9,0.03994443]
[1748446049254,0.04095162,169.93,169.91,5.8832]
[1748446049549,0.04095162,169.93,169.9,0.03994443]
[1748446050651,0.04095162,169.93,169.91,5.883]
[1748446051158,0.04095162,169.93,169.92,5.8828]
[1748446051549,0.04095162,169.93,169.9,0.03994443]
[1748446052053,0.04095162,169.93,169.91,5.883]
[1748446052351,0.04095162,169.93,169.9,0.03994443]
[1748446052955,0.04095162,169.93,169.91,5.883]
[1748446053453,0.04095162,169.93,169.9,0.03994443]
[1748446054352,0.04095162,169.93,169.91,5.883]
[1748446054753,0.04095162,169.93,169.9,0.03994443]
[1748446055547,0.04095162,169.93,169.92,5.8828]
[1748446056954,5.8806,169.99,169.96,5.8812]
[1748446057158,5.8808,169.98,169.96,5.8812]
[1748446057350,32.02,170.0,169.96,5.8812]
[1748446057655,5.8806,169.99,169.96,5.8812]
[1748446057959,5.8806,169.99,169.96,5.92113055]
[1748446058350,37.9002,170.0,169.97,5.8811]
[1748446058548,10.46664,170.07,169.96,0.03993055]
[1748446058758,32.02,170.06,170.0,0.03888558]
[1748446058957,5.879,170.04,170.0,5.91878558]
[1748446059157,32.02,170.06,170.0,0.03888558]
[1748446059861,1.9723,170.05,170.0,0.03888558]
[1748446060057,3.9169,170.05,170.0,0.03888558]
[1748446060563,5.8792,170.03,170.0,0.03888558]
[1748446060757,3.9169,170.05,170.0,0.03888558]
[1748446061256,5.8789,170.04,170.0,0.03888558]
[1748446062164,5.879,170.03,170.0,0.03888558]
[1748446064158,5.8794,170.02,170.0,0.03888558]
[1748446065159,34.1141,170.06,170.0,0.03888558]
[1748446065357,32.02,170.06,170.0,0.03888558]
[1748446065763,37.8983,170.06,170.01,5.8795]
[1748446066065,32.02,170.06,170.0,0.03888558]
[1748446066264,5.8787,170.04,170.0,5.91868558]
[1748446066563,32.02,170.06,170.0,0.03888558]
[1748446067764,37.8982,170.06,170.01,5.8796]
[1748446067964,10.46664,170.07,170.0,0.03888558]
[1748446068665,5.8782,170.06,170.02,5.8792]
[1748446069167,10.46664,170.07,170.02,5.8792]
[1748446069466,5.8784,170.05,170.01,5.8795]
[1748446069869,5.8781,170.06,170.02,5.8792]
[1748446070268,10.46664,170.07,170.0,0.03888558]
[1748446070571,16.34434,170.07,170.0,0.03888558]
[1748446071169,16.34434,170.07,170.03,5.8788]
[1748446071765,10.46664,170.07,170.0,0.03888558]
[1748446072868,5.8787,170.05,170.01,5.8795]
[1748446073169,10.46664,170.07,170.0,0.03888558]
[1748446073359,5.8789,170.04,170.0,5.91878558]
[1748446074570,5.8785,170.05,170.01,5.8797]
[1748446074772,10.46664,170.07,170.0,0.03888558]
[1748446075271,5.8786,170.05,170.0,5.91868558]
[1748446075471,10.46664,170.07,170.0,0.03888558]
[1748446075873,5.8789,170.04,170.0,5.91878558]
[1748446076073,10.46664,170.07,170.0,0.03888558]
[1748446077374,5.8786,170.05,170.01,5.8796]
[1748446077679,10.46664,170.07,170.0,0.03888558]
[1748446078278,5.8783,170.06,170.02,5.8794]
[1748446079785,5.8784,170.05,170.02,5.8794]
[1748446079986,5.8784,170.05,170.01,5.8796]
[1748446080382,10.46664,170.07,170.0,5.91878558]
[1748446080383,5.8787,170.04,170.0,5.91878558]
[1748446080888,10.46664,170.07,170.0,0.03888558]
[1748446081186,5.879,170.04,170.0,0.03888558]
[1748446082180,5.879,170.03,170.0,0.03888558]
[1748446082487,10.46664,170.07,170.0,0.03888558]
[1748446083188,0.04187778,170.05,169.91,31.92]
[1748446083384,31.92,170.04,169.91,31.92]
[1748446083585,3.9801,170.03,169.91,31.92]
[1748446083888,5.8803,170.0,169.95,5.8816]
[1748446084392,0.04028777,169.99,169.96,0.03823154]
[1748446085379,5.92078777,169.99,169.96,0.03823154]
[1748446085581,0.04028777,169.99,169.96,0.03823154]
[1748446086690,5.8811,169.97,169.96,0.03823154]
[1748446088092,5.8808,169.98,169.96,0.03823154]
[1748446090388,5.92078777,169.99,169.96,0.03823154]
[1748446090584,0.04028777,169.99,169.96,0.03823154]
[1748446091194,0.04028777,169.99,169.98,5.8808]
[1748446092286,0.04028777,169.99,169.96,0.03823154]
[1748446093290,0.04028777,169.99,169.96,5.91953154]
[1748446094088,5.92068777,169.99,169.96,5.91953154]
[1748446094390,5.92068777,169.99,169.96,0.03823154]
[1748446094698,5.92068777,169.99,169.96,5.91973154]
[1748446094895,5.92068777,169.99,169.96,0.03823154]
[1748446095689,5.881,169.98,169.96,0.03823154]
[1748446096395,5.8811,169.97,169.96,0.03823154]
[1748446096789,5.8809,169.98,169.96,0.03823154]
[1748446097288,0.04028777,169.99,169.96,0.03823154]
[1748446097491,5.8811,169.97,169.96,0.03823154]
[1748446098303,5.8809,169.98,169.96,0.03823154]
[1748446098499,0.04028777,169.99,169.96,0.03823154]
[1748446099097,5.92078777,169.99,169.96,0.03823154]
[1748446099296,0.04028777,169.99,169.96,0.03823154]
[1748446100098,0.04028777,169.99,169.97,5.8809]
[1748446100302,0.04028777,169.99,169.96,0.03823154]
[1748446100601,31.84,170.05,169.96,0.03823154]
[1748446100902,31.84,170.05,169.96,6.14153154]
[1748446101108,31.84,170.05,169.96,0.03823154]
[1748446101692,5.8811,169.97,169.96,0.03823154]
[1748446106510,37.7199,170.01,169.96,0.03823154]
[1748446106705,31.84,170.01,169.96,0.03823154]
[1748446107107,5.8801,170.0,169.96,5.91933154]
[1748446107407,31.84,170.01,169.96,0.03823154]
[1748446107604,37.7199,170.01,169.96,5.91963154]
[1748446108009,31.84,170.01,169.96,5.91963154]
[1748446108710,5.8803,170.0,169.96,5.91963154]
[1748446108910,31.84,170.01,169.96,0.03823154]
[1748446109401,5.8795,170.02,169.98,5.8808]
[1748446109601,31.84,170.05,169.96,0.03823154]
[1748446110008,31.84,170.05,169.97,5.881]
[1748446110705,5.8796,170.02,169.97,5.881]
[1748446110901,31.84,170.05,169.98,5.8807]
[1748446111103,5.8796,170.02,170.0,0.04448366]
[1748446111608,5.8793,170.03,170.0,0.04448366]
[1748446111806,31.84,170.05,170.0,0.04448366]
[1748446112207,5.8792,170.03,170.0,0.04448366]
[1748446113912,5.8794,170.02,170.0,0.04448366]
[1748446116611,5.879,170.03,170.0,0.04448366]
[1748446116911,31.84,170.05,170.0,0.04448366]
[1748446117114,5.8796,170.02,170.0,0.04448366]
[1748446122414,5.8797,170.01,170.0,0.04448366]
[1748446127510,5.8797,170.01,169.9,6.0606]
[1748446127511,31.78,170.01,169.9,6.0606]
[1748446127716,31.78,170.01,169.93,5.8822]
[1748446127911,5.881,169.98,169.9,6.0606]
[1748446128215,5.881,169.98,169.93,5.8822]
[1748446128419,0.04175799,169.97,169.94,0.04079027]
[1748446128813,0.04175799,169.97,169.94,5.92289027]
[1748446129012,0.04175799,169.97,169.94,0.04079027]
[1748446129410,0.04175799,169.97,169.94,5.92289027]
[1748446131924,5.92295799,169.97,169.94,0.04079027]
[1748446132423,0.04175799,169.97,169.94,0.04079027]
[1748446133023,5.92295799,169.97,169.94,0.04079027]
[1748446135230,0.04175799,169.97,169.94,5.92269027]
[1748446136828,0.04175799,169.97,169.94,0.04079027]
[1748446137229,5.92295799,169.97,169.94,0.04079027]
[1748446137928,0.04175799,169.97,169.94,5.92289027]
[1748446140530,0.04175799,169.97,169.94,0.04079027]
[1748446140531,5.92295799,169.97,169.94,0.04079027]
[1748446141130,0.04175799,169.97,169.94,5.92289027]
[1748446143431,0.04175799,169.97,169.94,0.04079027]
[1748446144134,0.04175799,169.97,169.95,5.8818]
[1748446144338,0.04175799,169.97,169.94,0.04079027]
[1748446144637,0.04175799,169.97,169.94,5.92279027]
[1748446145132,12.37274,170.07,169.94,0.04079027]
[1748446145434,5.8786,170.05,169.93,11.7648]
[1748446145635,10.46664,170.07,169.92,31.78]
[1748446146033,10.46664,170.07,169.98,0.04338869]
[1748446146233,10.46664,170.07,169.99,31.78]
[1748446146743,5.8786,170.05,170.02,5.8792]
[1748446146942,5.8786,170.05,170.02,5.91943819]
[1748446147139,10.46664,170.07,170.02,5.91943819]
[1748446147438,5.8783,170.06,170.02,5.91943819]
[1748446147635,10.46664,170.07,170.02,0.04023819]
[1748446147842,16.34444,170.07,170.02,0.04023819]
[1748446148030,16.34444,170.07,170.03,5.8787]
[1748446148229,16.34444,170.07,170.02,0.04023819]
[1748446148842,16.34444,170.07,170.04,5.8787]
[1748446150643,10.46664,170.07,170.04,5.8787]
[1748446150843,10.46664,170.07,170.03,5.8789]
[1748446151144,16.34454,170.07,170.03,5.8789]
[1748446152443,5.8781,170.06,170.02,5.91933819]
[1748446153148,5.8784,170.05,170.02,5.91933819]
[1748446154046,10.46664,170.07,170.02,5.91933819]
[1748446154545,16.34434,170.07,170.02,5.91933819]
[1748446154938,16.34434,170.07,170.03,5.879]
[1748446155946,10.46664,170.07,170.03,5.879]
[1748446156838,16.34444,170.07,170.03,5.879]
[1748446157040,10.46664,170.07,170.02,5.91953819]
[1748446157439,16.34444,170.07,170.02,5.91953819]
[1748446157744,16.34444,170.07,170.03,5.879]
[1748446160347,16.34444,170.07,170.02,0.04023819]
[1748446161049,5.878,170.06,170.03,5.8788]
[1748446161552,5.878,170.06,170.02,5.91943819]
[1748446161749,10.46664,170.07,170.02,5.91943819]
[1748446161750,5.8784,170.05,170.02,5.91943819]
[1748446161949,10.46664,170.07,170.02,0.04023819]
[1748446163247,5.8788,170.04,170.02,0.04023819]
[1748446163542,10.46664,170.07,170.02,0.04023819]
[1748446164150,16.34434,170.07,170.02,0.04023819]
[1748446164754,16.34434,170.07,170.03,5.8788]
[1748446166255,10.46664,170.07,170.04,5.8786]
[1748446166456,10.46664,170.07,170.02,0.04023819]
[1748446166754,16.34434,170.07,170.04,5.8785]
[1748446167756,16.34434,170.07,170.02,0.04023819]
[1748446167757,5.878,170.06,170.03,5.8789]
[1748446169254,16.34434,170.07,170.03,5.8789]
[1748446170656,16.34434,170.07,170.04,5.8786]
[1748446171252,5.8781,170.06,170.03,5.8789]
[1748446171457,10.46664,170.07,170.03,5.8789]
[1748446171755,16.34444,170.07,170.03,5.8789]
[1748446172056,16.34444,170.07,170.04,5.8786]
[1748446172356,16.34444,170.07,170.02,0.04023819]
[1748446173157,16.34444,170.07,170.04,5.8786]
[1748446173858,16.34444,170.07,170.03,5.8789]
[1748446175963,5.8781,170.06,170.03,5.8789]
[1748446176164,5.8781,170.06,170.02,5.91943819]
[1748446176561,16.34434,170.07,170.02,0.04023819]
[1748446176767,16.34434,170.07,170.03,5.8789]
[1748446176965,10.46664,170.07,170.03,5.8789]
[1748446177363,16.34444,170.07,170.03,5.8789]
[1748446177565,10.46664,170.07,170.02,5.91943819]
[1748446177759,10.46664,170.07,170.02,0.04023819]
[1748446178265,16.34454,170.07,170.02,0.04023819]
[1748446178565,16.34454,170.07,170.03,5.8788]
[1748446178768,16.34454,170.07,170.02,0.04023819]
[1748446178967,5.8781,170.06,170.02,0.04023819]
[1748446179174,5.8781,170.06,170.03,5.8789]
[1748446180874,16.34444,170.07,170.03,5.8789]
[1748446183078,16.34444,170.07,170.04,5.8787]
[1748446183379,10.46664,170.07,170.02,0.04023819]
[1748446183574,10.46664,170.07,170.05,5.8781]
[1748446183877,10.46664,170.07,170.02,0.04023819]